Cogmind - Beta 10.2 @@@ ROGUE MODE // 2021.03.28 @ 19:34:18 Player: Gobbopathe Result: Destroyed by G-50 Soldier with Heavy Laser Performance ------------- Evolutions (4) 2000 Regions Visited (10) 2000 Robots Destroyed (42) 210 Value Destroyed (1344) 1344 Prototype IDs (5) 100 Alien Tech Used (0) 0 Bonus (200) 200 TOTAL SCORE: 5854 Bonus ------- High Alert Combat Kills 19 Follower Combat Kills 140 Aligned with FarCom 300 Friendly Fire -259 Cogmind --------- Core Integrity 0/850 Matter 300/300 Energy 98/100 System Corruption 17% Temperature Cool (18) Movement Core (50) Location -6/Extension Parts ------- > --- POWER (2) -------- (None) > --- PROPULSION (4) --- (None) > --- UTILITY (6) ------ Advanced Terrain Scan Processor > --- WEAPON (3) ------- (None) > --- INVENTORY (4) ---- Large Storage Unit Energy Well (500) Improved EM Pulse Cannon Field Lobotomy Kit Peak State ------------ > --- POWER ------------ Light Angular Momentum Engine Light Angular Momentum Engine > --- PROPULSION ------- Medium Treads Carbon-fiber Leg Carbon-fiber Leg Carbon-fiber Leg > --- UTILITY ---------- Advanced Heat Sink Improved Cooling System Large Storage Unit High-capacity Storage Unit Core Shielding System Shield > --- WEAPON ----------- Assault Rifle Heavy Assault Rifle Coil Gun > --- INVENTORY -------- Improved Heat Sink Improved Cooling System Large Storage Unit Energy Well Energy Well High-capacity Matter Pod Advanced Terrain Scan Processor Lightning Gun Improved EM Pulse Cannon Remote Datajack Field Lobotomy Kit EMP Trap EMP Trap EMP Trap [Rating: 50] Favorites ----------- Power Light Deuterium Engine Engine Light Deuterium Engine Power Core Light Nuclear Core Propulsion Wheel Treads Medium Treads Leg Carbon-fiber Leg Wheel Wheel Flight Unit VTOL Module Utility High-capacity Storage Unit Device Improved Terrain Scanner Storage High-capacity Storage Unit Processor Terrain Scan Processor Hackware System Shield Protection Improved Light Armor Plating Weapon Ripper Energy Gun Small Laser Ballistic Gun Assault Rifle Ballistic Cannon Light Cannon Special Weapon Field Lobotomy Kit Slashing Weapon Ripper Build | -11 -10 -10 -10 -9 -8 -7 -7 -7 -6 -6 ------- Run | Scr Mat Min Exi Min Mat Fac Low Low Fac Ext Slots Evolved 8 | . . . . . 4 2 . . 2 . Power 1 | . . . . . . 1 . . . . Propulsion 2 | . . . . . 1 . . . 1 . Utility 4 | . . . . . 3 . . . 1 . Weapon 1 | . . . . . . 1 . . . . Parts Attached 101 | 7 3 3 6 1 34 3 13 2 25 4 Power 13 | 1 . 2 . . 2 1 2 . 5 . Engine 11 | 1 . 2 . . 2 1 2 . 3 . Core 2 | . . . . . . . . . 2 . Reactor . | . . . . . . . . . . . Propulsion 25 | 2 . 1 . 1 7 . 5 1 6 2 Treads 3 | . . . . . . . 1 1 1 . Leg 3 | . . . . . . . . . 3 . Wheel 17 | 2 . 1 . 1 7 . 4 . 1 1 Hover . | . . . . . . . . . . . Flight 2 | . . . . . . . . . 1 1 Utility 32 | 1 3 . 4 . 13 1 2 1 6 1 Device 13 | . . . 2 . 6 . . 1 4 . Storage 7 | 1 2 . 1 . 1 1 . . . 1 Processor 3 | . . . . . 2 . . . 1 . Hackware 2 | . . . . . . . 2 . . . Protection 7 | . 1 . 1 . 4 . . . 1 . Artifact . | . . . . . . . . . . . Weapon 31 | 3 . . 2 . 12 1 4 . 8 1 Energy Gun 11 | 1 . . . . 7 . . . 3 . Energy Cannon . | . . . . . . . . . . . Ballistic Gun 11 | 2 . . . . 3 1 . . 5 . Ballistic Cannon 3 | . . . 1 . 2 . . . . . Launcher . | . . . . . . . . . . . Special Weapon 2 | . . . 1 . . . . . . 1 Impact Weapon . | . . . . . . . . . . . Slashing Weapon 4 | . . . . . . . 4 . . . Piercing Weapon . | . . . . . . . . . . . Special Melee Weapon . | . . . . . . . . . . . Unidentified Prototypes 3 | . . . 3 . . . . . . . Parts Lost 59 | . . 4 . . 18 . 9 . 26 2 Power 11 | . . 1 . . 2 . 3 . 5 . Propulsion 15 | . . 1 . . 3 . 3 . 6 2 Utility 11 | . . . . . 3 . 2 . 6 . Weapon 22 | . . 2 . . 10 . 1 . 9 . Highest Loss Streak 18 | . . 4 . . 18 . 8 . 11 2 Average Slot Usage (%) 83 | . 97 90 80 85 94 93 97 79 68 11 Engine 8 | . 14 13 14 14 8 8 14 . 2 . Treads 2 | . . . . . . . . 11 6 . Leg 1 | . . . . . . . . . 5 . Wheel 17 | . 28 28 28 28 24 23 22 7 2 1 Device 6 | . . . . . 9 7 6 6 10 . Storage 14 | . 14 14 15 28 18 15 15 15 12 . Processor 3 | . . . . . 8 7 7 . . 6 Hackware 3 | . . . . . . . . 15 8 . Protection 5 | . 11 14 12 . 7 7 6 . 2 . Energy Gun 2 | . 14 9 . . 5 . . . 1 . Ballistic Gun 5 | . 14 9 . . 5 23 2 . 5 . Ballistic Cannon 1 | . . . 9 14 5 . . . . . Slashing Weapon 8 | . . . . . . . 20 23 7 . Naked Turns . | . . . . . . . . . . . Heaviest Build 80 | 12 41 41 56 56 70 69 80 59 75 8 Greatest Support 56 | 26 26 26 26 26 42 36 36 56 45 5 Greatest Overweight (x) 23 | . 1 1 2 2 6 1 3 2 23 2 Average Overweight (x) 1 | . . 1 1 2 1 1 1 1 1 . Largest Inventory Capacity 24 | 6 12 12 18 18 24 18 18 18 18 4 Average Capacity 16 | 5 10 12 12 18 18 18 18 18 17 4 Most Carried 18 | 2 8 12 14 15 18 18 18 14 18 4 Average Carried 14 | 1 5 11 11 14 14 16 17 14 14 3 Final Capacity 18 | 6 12 12 18 18 18 18 18 18 4 4 Final Carried 18 | 2 8 12 14 15 14 18 14 14 4 4 Class Distribution -------------------- 31% | Mutant 29% | Scavenger-Skirmisher 19% | Scavenger-Mutant 17% | Hacker-Mutant Dominant Class ---------------- Mutant | -10/Materials Mutant | -10/Mines Mutant | -10/Exiles Mutant | -9/Mines Scavenger-Skirmisher | -8/Materials Scavenger-Skirmisher | -7/Factory Scavenger-Mutant | -7/Lower Caves Hacker-Mutant | -7/Lower Caves Mutant | -6/Factory Mutant | -6/Extension Resources | -11 -10 -10 -10 -9 -8 -7 -7 -7 -6 -6 ----------- Run | Scr Mat Min Exi Min Mat Fac Low Low Fac Ext Matter Collected 1741 | 233 . 110 60 18 368 79 203 40 585 45 Remotely . | . . . . . . . . . . . Salvage Created 2193 | . . 61 . 6 414 79 952 . 681 . Parts 107 | . . 6 . 2 31 7 23 . 38 . Haulers Intercepted . | . . . . . . . . . . . Recyclers Shooed 1 | . . 1 . . . . . . . . Parts Field Recycled . | . . . . . . . . . . . Retrieved Matter . | . . . . . . . . . . . Parts Self-Destructed 15 | . . . . . . . 15 . . . Prevented . | . . . . . . . . . . . Kills | -11 -10 -10 -10 -9 -8 -7 -7 -7 -6 -6 ------- Run | Scr Mat Min Exi Min Mat Fac Low Low Fac Ext Combat Hostiles Destroyed 31 | . . . . . 8 1 7 . 15 . Melee 8 | . . . . . . . 7 . 1 . Guns 20 | . . . . . 5 1 . . 14 . Cannons 3 | . . . . . 3 . . . . . Classes Destroyed 13 | . . 2 . 1 5 2 3 . . . Worker 3 | . . . . 1 1 . . . 1 . Builder 3 | . . 1 . . 1 . . . 1 . Tunneler 2 | . . 1 . . . . . . 1 . Recycler 1 | . . . . . 1 . . . . . Watcher 1 | . . . . . . 1 . . . . Swarmer 14 | . . . . . 2 . 3 . 9 . Grunt 7 | . . . . . 3 . 1 . 3 . Duelist 2 | . . . . . . . 1 . 1 . Sentry 3 | . . . . . 2 . . . 1 . Hunter 1 | . . . . . 1 . . . . . Programmer 3 | . . . . . . 1 1 . 1 . Savage 1 | . . . . . . . 1 . . . Mutant 1 | . . . . . . . 1 . . . Best Kill Streak 12 | . . 1 . 1 7 1 5 . 12 . Combat Bots Only 9 | . . . . . 6 1 5 . 9 . Max Kills in Single Turn 2 | . . 1 . 1 2 1 1 . 1 . Gunslinging 1 | . . . . . 1 . . . . . Exploded . | . . . . . . . . . . . Melee 1 | . . . . . . . 1 . 1 . Uniques/NPCs Destroyed . | . . . . . . . . . . . Combat | -11 -10 -10 -10 -9 -8 -7 -7 -7 -6 -6 -------- Run | Scr Mat Min Exi Min Mat Fac Low Low Fac Ext Damage Taken 6986 | . . 450 . . 2260 146 860 . 3061 209 Core 1653 | . . 122 . . 499 14 160 . 725 133 Absorbed by Shields . | . . . . . . . . . . . Core Remaining (%) 58 | 100 . . . 51 9 . . 75 . . Volleys Fired 119 | . 1 10 . 2 25 11 4 . 64 2 Largest 3 | . 2 2 . 1 2 3 3 . 3 1 Hottest 138 | . 60 60 . 35 138 71 71 . 105 . Shots Fired 254 | . 2 20 . 2 49 32 12 . 135 2 Gun 234 | . 2 20 . . 33 32 12 . 135 . Cannon 18 | . . . . 2 16 . . . . . Launcher . | . . . . . . . . . . . Special 2 | . . . . . . . . . . 2 Kinetic 204 | . 1 10 . 2 29 32 12 . 118 . Thermal 33 | . 1 10 . . 20 . . . 2 . Explosive . | . . . . . . . . . . . Electromagnetic 15 | . . . . . . . . . 15 . Robot Hit Streak 16 | . 2 5 . 4 3 5 15 . 16 3 Robot Miss Streak 4 | . . 2 . . 3 2 . . 4 . Penetration Max 1 | . . . . . 1 . . . 1 . Secondary Targets 2 | . . . . . 1 . . . 1 . Max Gunslinging Chain 1 | . . . . . 1 . . . 1 . Shots Hit Robots 190 | . 2 12 . 2 24 19 48 . 81 2 Core Hits 88 | . 1 6 . 1 20 5 23 . 32 . Critical Hits 8 | . . . . 1 1 . 2 . 4 . Critical Kills 4 | . . . . . . . 2 . 2 . Critical Parts Destroyed 4 | . . . . 1 1 . . . 2 . Melee Attacks 71 | . . . . . . . 55 5 11 . Impact . | . . . . . . . . . . . Slashing 71 | . . . . . . . 55 5 11 . Piercing . | . . . . . . . . . . . Sneak Attacks . | . . . . . . . . . . . Combat Hostiles . | . . . . . . . . . . . Follow-up Attacks 10 | . . . . . . . 10 . . . Damage Inflicted 5896 | . 23 149 . 37 539 345 3072 . 1731 . Guns 2652 | . 23 149 . . 289 345 159 . 1687 . Cannons 287 | . . . . 37 250 . . . . . Explosions . | . . . . . . . . . . . Melee 2913 | . . . . . . . 2913 . . . Ramming 44 | . . . . . . . . . 44 . Kinetic 2521 | . 11 83 . 37 346 345 159 . 1540 . Thermal 282 | . 12 66 . . 193 . . . 11 . Explosive . | . . . . . . . . . . . Electromagnetic 136 | . . . . . . . . . 136 . Impact . | . . . . . . . . . . . Slashing 2913 | . . . . . . . 2913 . . . Piercing . | . . . . . . . . . . . Highest Corruption 17 | . . . . . . 1 2 2 17 17 Average Corruption 6 | . . . . . . 1 1 2 16 17 Corruption Purged . | . . . . . . . . . . . Effects 94 | . . . . . . 3 6 5 69 11 Message Errors 15 | . . . . . . . 4 2 6 3 Matter Fused 6 | . . . . . . . . . 5 1 Heat Flow Errors 6 | . . . . . . . 2 2 2 . Energy Discharges 6 | . . . . . . . . 1 4 1 Parts Rejected 2 | . . . . . . . . . 2 . Data Loss (minor) 9 | . . . . . . . . . 7 2 Data Loss (major) 3 | . . . . . . . . . 3 . Misdirections 8 | . . . . . . . . . 4 4 Targeting Errors 32 | . . . . . . 2 . . 30 . Weapon Failures 7 | . . . . . . 1 . . 6 . Overload Shots . | . . . . . . . . . . . Overflow Damage 764 | . . . . . . . 764 . . . Projectiles . | . . . . . . . . . . . Explosions . | . . . . . . . . . . . Melee 764 | . . . . . . . 764 . . . Knockbacks 3 | . . . . 1 2 . . . . . Impact . | . . . . . . . . . . . Kinetic 3 | . . . . 1 2 . . . . . Secondary . | . . . . . . . . . . . Self-Inflicted Damage 32 | . . . . . . . . . 32 . Shots . | . . . . . . . . . . . Rammed 3 | . . . . . . . . . 3 . Targets Rammed 3 | . . . . . . . . . 3 . Kicked . | . . . . . . . . . . . Crushed . | . . . . . . . . . . . Highest Temperature 491 | . . . . . 491 12 335 117 163 . Average Temperature 149 | . . . . . 256 6 109 83 55 . Received Heat Transfer 1434 | . . . . . 621 . 99 . 630 84 Effects 4 | . . . . . 2 . 2 . . . Shutdowns 2 | . . . . . 2 . . . . . Interference 2 | . . . . . . . 2 . . . Siege Activations . | . . . . . . . . . . . Robots Corrupted . | . . . . . . . . . . . Combat Hostiles . | . . . . . . . . . . . Parts Fried . | . . . . . . . . . . . Impact Corruptions . | . . . . . . . . . . . Robots Melted . | . . . . . . . . . . . Combat Hostiles . | . . . . . . . . . . . Parts Melted . | . . . . . . . . . . . Heat Transferred 607 | . 25 150 . . 407 . . . 25 . Parts Sabotaged . | . . . . . . . . . . . Parts Stolen . | . . . . . . . . . . . Parts Stripped . | . . . . . . . . . . . Power Chain Reactions . | . . . . . . . . . . . Missiles Intercepted . | . . . . . . . . . . . Alert | -11 -10 -10 -10 -9 -8 -7 -7 -7 -6 -6 ------- Run | Scr Mat Min Exi Min Mat Fac Low Low Fac Ext Peak Influence 481 | . 90 44 . 5 116 481 . . 466 275 Initial 127 | . . 34 . . 1 20 . . . 127 Average 95 | . 32 30 . . 35 156 . . 135 187 Maximum Alert Level 2 | . . . . . . 2 . . 2 1 Low Security (%) 79 | 100 100 100 . 100 100 64 . . 64 52 Level 1 12 | . . . . . . 13 . . 21 47 Level 2 8 | . . . . . . 22 . . 14 . Level 3 . | . . . . . . . . . . . Level 4 . | . . . . . . . . . . . Level 5 . | . . . . . . . . . . . High Security . | . . . . . . . . . . . Max Security . | . . . . . . . . . . . Squads Dispatched 9 | . 2 . . . 2 1 . . 3 1 Investigation 3 | . . . . . 2 . . . . 1 Extermination 2 | . . . . . . 1 . . 1 . Reinforcement 4 | . 2 . . . . . . . 2 . Assault . | . . . . . . . . . . . Garrison . | . . . . . . . . . . . Intercept . | . . . . . . . . . . . Construction Impeded 1 | . . . . . . . . . 1 . Haulers Reinforced . | . . . . . . . . . . . Stealth | -11 -10 -10 -10 -9 -8 -7 -7 -7 -6 -6 --------- Run | Scr Mat Min Exi Min Mat Fac Low Low Fac Ext Distress Signals 6 | . 1 . . . 1 . . . 3 1 Communications Jammed . | . . . . . . . . . . . Distress Signals . | . . . . . . . . . . . Times Spotted 85 | . 7 2 . . 15 4 11 . 34 12 Peak Tracking Total 11 | . 5 2 . . 10 2 4 . 11 5 Tactical Retreats 13 | . 1 1 . . 1 . 3 . 6 1 Traps | -11 -10 -10 -10 -9 -8 -7 -7 -7 -6 -6 ------- Run | Scr Mat Min Exi Min Mat Fac Low Low Fac Ext Traps Triggered 3 | . . . . . 1 . 1 . 1 . Indirectly . | . . . . . . . . . . . Trap Hack Attempts . | . . . . . . . . . . . Triggered . | . . . . . . . . . . . Disarmed . | . . . . . . . . . . . Reprogrammed . | . . . . . . . . . . . Reused . | . . . . . . . . . . . Traps Extracted . | . . . . . . . . . . . Installed . | . . . . . . . . . . . Triggered . | . . . . . . . . . . . Machines | -11 -10 -10 -10 -9 -8 -7 -7 -7 -6 -6 ---------- Run | Scr Mat Min Exi Min Mat Fac Low Low Fac Ext Machines Disabled 10 | . . . . . 4 . . . 3 3 Max in Single Turn 1 | . . . . . 1 . . . 1 . Garrison Access 2 | . . . . . 1 1 . . . . Machines Sabotaged . | . . . . . . . . . . . Garrisons Compromised . | . . . . . . . . . . . Overloaded Fab Kills . | . . . . . . . . . . . Fab Network Shutdowns 1 | . . . . . . 1 . . . . Hacking | -11 -10 -10 -10 -9 -8 -7 -7 -7 -6 -6 --------- Run | Scr Mat Min Exi Min Mat Fac Low Low Fac Ext Machines Accessed 23 | . . . 4 . 8 6 1 . 3 1 Terminals 10 | . . . . . 6 3 . . . 1 Fabricators 3 | . . . . . . 2 . . 1 . Repair Stations 1 | . . . . . 1 . . . . . Recycling Units 1 | . . . . . . . . . 1 . Scanalyzers 1 | . . . . . . . . . 1 . Garrison Access 2 | . . . . . 1 1 . . . . Total Hacks 114 | . . . 49 . 36 16 1 . 10 2 Successful 84 | . . . 49 . 19 8 1 . 7 . Failed 30 | . . . . . 17 8 . . 3 2 Catastrophic 4 | . . . . . 2 1 . . . 1 Database Lockouts . | . . . . . . . . . . . Manual 34 | . . . 1 . 23 10 . . . . Terminals 39 | . . . . . 27 10 . . . 2 Fabricators 7 | . . . . . . 4 . . 3 . Repair Stations 6 | . . . . . 6 . . . . . Recycling Units 3 | . . . . . . . . . 3 . Scanalyzers 4 | . . . . . . . . . 4 . Garrison Access 5 | . . . . . 3 2 . . . . Terminal Hacks 59 | . . . 49 . 8 1 1 . . . Record 49 | . . . 49 . . . . . . . Part Schematic 3 | . . . . . 3 . . . . . Prototype ID Bank 1 | . . . . . 1 . . . . . Open Door 1 | . . . . . . . 1 . . . Terminal Index 2 | . . . . . 1 1 . . . . Unreport Threat 2 | . . . . . 2 . . . . . Recall Investigation 1 | . . . . . 1 . . . . . Fabricator Hacks 4 | . . . . . . 3 . . 1 . Load Schematic 3 | . . . . . . 2 . . 1 . Build 1 | . . . . . . 1 . . . . Repair Station Hacks 6 | . . . . . 6 . . . . . Scan Component 3 | . . . . . 3 . . . . . Repair 3 | . . . . . 3 . . . . . Recycling Unit Hacks 2 | . . . . . . . . . 2 . Report Inventory 1 | . . . . . . . . . 1 . Retrieve Components 1 | . . . . . . . . . 1 . Scanalyzer 4 | . . . . . . . . . 4 . Insert Component 1 | . . . . . . . . . 1 . Analyze 3 | . . . . . . . . . 3 . Garrison Access Hacks 2 | . . . . . 1 1 . . . . Seal Access 2 | . . . . . 1 1 . . . . Unauthorized Hacks 7 | . . . . . 4 3 . . . . Terminals 7 | . . . . . 4 3 . . . . Assimilate 1 | . . . . . 1 . . . . . Botnet 4 | . . . . . 2 2 . . . . Operators 2 | . . . . . 1 1 . . . . Fabricators . | . . . . . . . . . . . Repair Stations . | . . . . . . . . . . . Recycling Units . | . . . . . . . . . . . Scanalyzers . | . . . . . . . . . . . Garrison Access . | . . . . . . . . . . . Data Cores Recovered . | . . . . . . . . . . . Used . | . . . . . . . . . . . Hacking Detections 17 | . . . . . 7 6 . . 3 1 Full Trace Events 2 | . . . . . 1 . . . . 1 Feedback Events . | . . . . . . . . . . . Feedback Blocked . | . . . . . . . . . . . Robot Schematics Acquired . | . . . . . . . . . . . Robots Built . | . . . . . . . . . . . Matter . | . . . . . . . . . . . Time . | . . . . . . . . . . . Total Robot Build Rating . | . . . . . . . . . . . Part Schematics Acquired 4 | . . . . . 3 . . . 1 . Parts Built 1 | . . . . . . 1 . . . . Matter 146 | . . . . . . 146 . . . . Time 36 | . . . . . . 36 . . . . Total Part Build Rating 3 | . . . . . . 3 . . . . Parts Repaired 3 | . . . . . 3 . . . . . Time 90 | . . . . . 90 . . . . . Parts Recycled . | . . . . . . . . . . . Recycled Matter . | . . . . . . . . . . . Retrieved Matter . | . . . . . . . . . . . Retrieved Components 3 | . . . . . . . . . 3 . Parts Scanalyzed 1 | . . . . . . . . . 1 . Part Schematics Acquired 1 | . . . . . . . . . 1 . Parts Damaged . | . . . . . . . . . . . Bothacking | -11 -10 -10 -10 -9 -8 -7 -7 -7 -6 -6 ------------ Run | Scr Mat Min Exi Min Mat Fac Low Low Fac Ext Used RIF Installer . | . . . . . . . . . . . Robots Hacked . | . . . . . . . . . . . Non-combat . | . . . . . . . . . . . Combat . | . . . . . . . . . . . Robot Hacks Applied . | . . . . . . . . . . . Relay Couplers Released . | . . . . . . . . . . . Robots Rewired . | . . . . . . . . . . . Allies Hacked . | . . . . . . . . . . . Hacks Repelled . | . . . . . . . . . . . Allies | -11 -10 -10 -10 -9 -8 -7 -7 -7 -6 -6 -------- Run | Scr Mat Min Exi Min Mat Fac Low Low Fac Ext Total Allies 3 | . . . . . 1 . . . . 2 Largest Group 1 | . . . . . 1 . . . . 1 Highest-Rated Group 81 | . . . . . 10 . . . . 81 Highest-Rated Ally 81 | . . . . . 10 . . . . 81 Total Orders . | . . . . . . . . . . . Ally Attacks 22 | . . . . . . . . . . 22 Total Damage 975 | . . . . . . . . . . 975 Kills 6 | . . . . . . . . . . 6 Allies Corrupted . | . . . . . . . . . . . Allies Melted . | . . . . . . . . . . . Field Lobotomies 2 | . . . . . . . . . . 2 Intel | -11 -10 -10 -10 -9 -8 -7 -7 -7 -6 -6 ------- Run | Scr Mat Min Exi Min Mat Fac Low Low Fac Ext Robot Analysis Total . | . . . . . . . . . . . Derelict Logs Recovered 3 | . . 1 . . . . 1 1 . . Drone Launches . | . . . . . . . . . . . Drone Recoveries . | . . . . . . . . . . . Exploration | -11 -10 -10 -10 -9 -8 -7 -7 -7 -6 -6 ------------- Run | Scr Mat Min Exi Min Mat Fac Low Low Fac Ext Turns Passed 4852 | 46 129 341 433 56 673 462 986 636 917 173 Spaces Moved 3481 | 39 119 288 417 46 499 419 790 261 353 250 Core 169 | 3 . . . . . . . . 47 119 Treads 470 | . . . . . . . 13 261 196 . Legs 63 | . . . . . . . . . 63 . Wheels 2610 | 36 119 288 417 46 499 419 777 . 9 . Hover . | . . . . . . . . . . . Flight 169 | . . . . . . . . . 38 131 Fastest Speed 40 | 50 90 100 100 110 96 96 96 180 40 40 Average Speed 111 | 88 97 100 100 110 101 96 107 193 167 49 Slowest Speed 1200 | 100 100 100 110 110 140 96 200 200 1200 150 Overloaded Moves . | . . . . . . . . . . . Propulsion Burnouts . | . . . . . . . . . . . Robots Hopped 3 | . . . . . . . . . 2 1 Cave-ins Triggered 3 | . . . . . . . . . 3 . Exploration Rate (%) 36 | 4 27 65 89 13 34 11 83 36 7 33 Regions Visited 10 Branch Regions 6 Pre-discovered Areas 2 | . . 1 1 . . . . . . . Known Exits Taken 1 | . . . . . . . . . 1 . Unknown Exits Taken 9 | 1 1 1 1 1 1 1 1 1 . . Scrap Searched 5 | . . . . . . . 3 2 . . Spaces Dug 14 | . . . . . . . . 4 10 . Terrain Destroyed 19 | . . . . . . . . 4 15 . Melee 14 | . . . . . . . . 4 10 . Projectile 4 | . . . . . . . . . 4 . AOE . | . . . . . . . . . . . Terrain Rammed 1 | . . . . . . . . . 1 . Walls Destroyed 1 | . . . . . . . . . 1 . Machines Disabled . | . . . . . . . . . . . Actions | -11 -10 -10 -10 -9 -8 -7 -7 -7 -6 -6 --------- Run | Scr Mat Min Exi Min Mat Fac Low Low Fac Ext Total 4108 | 46 128 322 428 49 610 455 857 386 531 296 Wait 275 | . . 10 . 1 40 9 . 120 57 38 Move 3462 | 38 118 287 416 45 498 418 789 260 345 248 Hop 3 | . . . . . . . . . 2 1 Pick Up 45 | 1 5 8 3 . 9 9 4 . 6 . Fast Attach 51 | 6 2 2 3 . 15 1 3 2 15 2 Attach 31 | . . 1 1 . 13 1 4 . 9 2 Detach 6 | . . . . . 2 . 1 . 1 2 Swap 19 | 1 1 . 2 1 6 1 6 . 1 . Drop 37 | . 1 4 3 . 2 5 8 . 13 1 Fire 119 | . 1 10 . 2 25 11 4 . 64 2 Melee 53 | . . . . . . . 38 4 11 . Ram 4 | . . . . . . . . . 4 . Kick . | . . . . . . . . . . . Crush . | . . . . . . . . . . . Escape Stasis 3 | . . . . . . . . . 3 . Rewire . | . . . . . . . . . . . Trap . | . . . . . . . . . . . Miscellaneous . | . . . . . . . . . . . Route ------- -11/Scrapyard -10/Materials -10/Mines -10/Exiles (discovered 2 exits: [*Min x2]) -9/Mines -8/Materials -7/Factory -7/Lower Caves -7/Lower Caves -6/Factory (discovered 2 exits: [*Fac] / *Ext) -6/Extension History --------- Turn | Location | Event 11 | -11/Scrapyard | Discovered new exit (range 16) 47 | -11/Scrapyard | Entered Materials 163 | -10/Materials | Discovered new exit (range 14) 176 | -10/Materials | Entered Mines 194 | -10/Mines | Learned location of Zion (-7) 232 | -10/Mines | Found a hidden stash of uninstalled traps 312 | -10/Mines | Build established: Mutant 366 | -10/Mines | Assembled infested the area 410 | -10/Mines | Met 8R-AWN 454 | -10/Mines | Lost 4 parts (1p1n2w) 513 | -10/Mines | Discovered new exit (range 5) 517 | -10/Mines | Entered Exiles 535 | -10/Exiles | Discovered new exit (range 14) 549 | -10/Exiles | Welcomed by 8R-AWN 563 | -10/Exiles | Met EX-HEX 593 | -10/Exiles | Met EX-BIN 604 | -10/Exiles | Aligned with FarCom system 605 | -10/Exiles | Given EX-Vault access code 644 | -10/Exiles | Opened EX-Vault 651 | -10/Exiles | Found Prototype Device 651 | -10/Exiles | Identified PSU Rigger 653 | -10/Exiles | Found Prototype Special Weapon 653 | -10/Exiles | Identified Field Lobotomy Kit 659 | -10/Exiles | Found Prototype Device 659 | -10/Exiles | Identified Cloak of Protection 687 | -10/Exiles | Warned to stay clear of 0b10 Research branches 715 | -10/Exiles | Met EX-DEC 771 | -10/Exiles | Visited The Gauntlet 941 | -10/Exiles | Discovered new exit (range 10) 950 | -10/Exiles | Left Exiles lab with Field Lobotomy Kit 950 | -10/Exiles | Entered Mines 993 | -9/Mines | Discovered new exit (range 6) 1006 | -9/Mines | Entered Materials 1006 | -8/Materials | Evolved 4 slots: Propulsion x1, Utility x3 1046 | -8/Materials | Repaired Com. Wheel? 1089 | -8/Materials | Repaired Wheel 1132 | -8/Materials | Repaired Imp. Light Armor Plating 1300 | -8/Materials | Build established: Scavenger-Skirmisher 1432 | -8/Materials | Core integrity fell below 50% 1470 | -8/Materials | Core integrity fell below 20% 1514 | -8/Materials | Lost 18 parts (2p3n3u10w) 1565 | -8/Materials | Discovered new exit (range 14) 1679 | -8/Materials | Entered Factory 1679 | -7/Factory | Evolved 2 slots: Power x1, Weapon x1 1975 | -7/Factory | Local fabrication network quarantined 1998 | -7/Factory | Fabricated Hacking Suite? 2114 | -7/Factory | Discovered new exit (range 16) 2141 | -7/Factory | Entered Lower Caves 2541 | -7/Lower Caves | Build established: Scavenger-Mutant 2796 | -7/Lower Caves | Encountered a Warlord checkpoint 3063 | -7/Lower Caves | Discovered new exit (range 13) 3117 | -7/Lower Caves | Lost 8 parts (2p3n2u1w) 3127 | -7/Lower Caves | Entered another Lower Caves area 3397 | -7/Lower Caves | Learned location of 1 exit from Factory 3420 | -7/Lower Caves | Build established: Hacker-Mutant 3458 | -7/Lower Caves | Spotted B-75 Beast 3743 | -7/Lower Caves | Discovered new exit (range 10) 3763 | -7/Lower Caves | Entered Factory 3763 | -6/Factory | Evolved 2 slots: Propulsion x1, Utility x1 3764 | -6/Factory | Identified exit to Extension 3851 | -6/Factory | Discovered new exit (range 14) 4089 | -6/Factory | Crushed by falling debris 4102 | -6/Factory | Crushed by falling debris 4107 | -6/Factory | Crushed by falling debris 4108 | -6/Factory | System corruption reached 10% 4138 | -6/Factory | Lost 6 parts (1n2u3w) 4454 | -6/Factory | Destroyed 9 combat bots 4458 | -6/Factory | Lost 4 parts (2p1n1w) 4571 | -6/Factory | Lost 3 parts (3n) 4645 | -6/Factory | Core integrity fell below 50% 4673 | -6/Factory | Lost 11 parts (3p1n3u4w) 4677 | -6/Factory | Core integrity fell below 20% 4680 | -6/Factory | Entered Extension 4719 | -6/Extension | Spotted B-75 Beast 4721 | -6/Extension | Assimilated B-75 Beast with FLK Orb 4734 | -6/Extension | Spotted B-75 Beast 4737 | -6/Extension | Assimilated B-75 Beast with FLK Orb 4853 | -6/Extension | Destroyed by G-50 Soldier with Heavy Laser Last Messages --------------- 04749_ Acquired Wheel. 04750_ System corrupted: Energy discharge (-17). 04754_ S-27 Virus destroyed. 04762_ U-05 Engineer builds a Wall. 04769_ System corrupted: Component data lost. 04770_ S-27 Virus knocked back. 04770_ S-27 Virus destroyed. 04772_ U-05 Engineer builds a Wall. 04773_ W-25 Informer knocked back. 04773_ Machine disabled. 04773_ Acquired VTOL Module. 04775_ Acquired 15 matter. 04775_ Acquired 5 matter. 04780_ Dropped Wheel. 04803_ System corrupted: Component data lost. 04819_ 2NM,2A&6ZVAMON VS ZINOPUB%%7CIRL1>VV P| 04835_ System corrupted: Matter fused (-7). 04847_ Beast 5b destroyed. 04848_ Acquired 7 matter. 04849_ VTOL Module destroyed. Map ----- +----------------------------------------------------+ | ?????????????????????????????????????????????????? | | ?????????????????????????????????????????????????? | | ?????????????????????????????????????????????????? | | ?????????????????????????????????????????????????? | | ?????????????????????????????????????????????????? | | ?????????????????????????????????????????????????? | | ?????????????????????????????????????????????????? | | ?????????????????????????????????????????????????? | | ??? ?????????????????????????????????????????????? | | ??# ?????????????????????????????????????????????? | | ?# ?????????????????????????????????????????????? | | ?# ?????????????????????????????????????????????? | | ?# ?????????????????????????????????????????????? | | ?# #????????????????????????????????????????????? | | ?# #????????????????????????????????????????????? | | ?# #????????????????????????????????????????????? | | ?? #????????????????????????????????????????????? | | ?? #????????????????????????????????????????????? | | #?# #????????????????????????????????????????????? | | ### ###??????????????????????????????????????????? | | "" ""#??????????????????????????????????????????? | | " #??????????????????????????????????????????? | | #??????????????????????????????????????????? | | #??????????????????????????????????????????? | | = ############################################ | | ! g @ R | | !%= | | * g | | g | | t | | ########################;################### | | #???????????????????????##?????????????????? | | #??????????????????????????????????????????? | | #????????????????????ggg???????????????????? | | #??????????????????????????????????????????? | | #######??????????????????????????????????????????? | | ?????????????????????????????????????????????????? | | ?????????????????????????????????????????????????? | | | | | | | | | | | | | | | | | | | | | | | | | +----------------------------------------------------+ Best States ------------- Heat Dissipation 83 Energy Generation 31 Energy Capacity 340 Matter Stores 300 Matter Capacity 300 Sight Range 16 Terrain Scan Range 20 Terrain Scan Density 210 Cloak Strength 5 Armor Coverage 150 Core Shielding 20 Propulsion Shielding 33 Weapon Cycling 15 Evasion (%) 62 Recoil Reduction 2 Offensive Hacking 10 Defensive Hacking 10 Item Schematics ----------------- Hacking Suite | -8/Materials | Hacked System Shield | -8/Materials | Hacked Imp. Propulsion Shielding | -8/Materials | Hacked Imp. Cooling System | -6/Factory | Scanalyzed Robot Schematics ------------------ None Fabricated ------------ Hacking Suite | x1 | -7/Factory Alien Tech Used ----------------- None Achievements -------------- None Challenges ------------ None Game ------ Seed TeslaBombInsulator Manual? 0 Play Time 01:15:09 Cumulative 154.3 hours Start 2021.03.28 @ 18:06:17 End 2021.03.28 @ 19:34:18 Sessions 1 Manual Loads 0 Difficulty Rogue Special Mode None Game No. 77 Rogue 77 Adventurer 0 Explorer 0 Win Type - Total 5 Types 4/0/1/0/0/0/0/0/0 Lore% 66 Gallery% 74 Achievement% 55 Wizard Run 0 Options --------- ASCII 0 Keyboard 1 Movement Numpad Keybinds 0 Fullscreen 2 Font 18/SmallcapsGlow Map View 76x50 Tactical HUD 1 Map Filters NONE Filters NONE Steam 1 RUN: 25784e1f-1149-48e8-a945-7b200e8361e8